[Event "Early-Titled-Tuesday-Blitz-February-06-2024"]
[Site "Chess.com"]
[Date "2024.02.06"]
[Round "9"]
[White "BardArtem"]
[Black "abhidabhi"]
[Result "0-1"]
[WhiteElo "2769"]
[BlackElo "2916"]
[TimeControl "180+1"]
[EndTime "9:45:47 PST"]
[Termination "abhidabhi won on time"]

1. e4 {[%clk 0:03:00.9]} 1... e5 {[%clk 0:02:57.2]} 2. Nf3 {[%clk 0:03:00.6]}
2... Nc6 {[%clk 0:02:57.8]} 3. Bc4 {[%clk 0:03:00.9]} 3... Nf6 {[%clk
0:02:57.5]} 4. d3 {[%clk 0:03:01.5]} 4... d5 {[%clk 0:02:56.5]} 5. exd5 {[%clk
0:03:00.6]} 5... Nxd5 {[%clk 0:02:57.1]} 6. Nc3 {[%clk 0:03:01.2]} 6... Nb6
{[%clk 0:02:46.7]} 7. Bb3 {[%clk 0:03:00.7]} 7... Bg4 {[%clk 0:02:46.1]} 8. h3
{[%clk 0:02:52.7]} 8... Bh5 {[%clk 0:02:46.2]} 9. Ne4 {[%clk 0:02:36.4]} 9...
Be7 {[%clk 0:02:09]} 10. Ng3 {[%clk 0:02:33.3]} 10... Bg6 {[%clk 0:02:03.4]} 11.
O-O {[%clk 0:02:32.6]} 11... O-O {[%clk 0:02:01.5]} 12. Re1 {[%clk 0:02:32.6]}
12... Bd6 {[%clk 0:02:00.3]} 13. Bg5 {[%clk 0:02:31.2]} 13... Qd7 {[%clk
0:01:58.9]} 14. Nh4 {[%clk 0:02:31.5]} 14... Nd4 {[%clk 0:01:57.9]} 15. Qg4
{[%clk 0:02:23.7]} 15... Nxb3 {[%clk 0:01:51.5]} 16. Qxd7 {[%clk 0:02:19.4]}
16... Nxd7 {[%clk 0:01:51.5]} 17. axb3 {[%clk 0:02:20.3]} 17... f6 {[%clk
0:01:47.8]} 18. Nxg6 {[%clk 0:02:18]} 18... hxg6 {[%clk 0:01:47.5]} 19. Bd2
{[%clk 0:02:18.4]} 19... f5 {[%clk 0:01:45.3]} 20. Kf1 {[%clk 0:02:17.6]} 20...
a6 {[%clk 0:01:44.9]} 21. Ne2 {[%clk 0:02:13.7]} 21... Nf6 {[%clk 0:01:41.6]}
22. Ng1 {[%clk 0:02:12.9]} 22... e4 {[%clk 0:01:38.7]} 23. dxe4 {[%clk
0:02:09.8]} 23... Nxe4 {[%clk 0:01:38.9]} 24. Nf3 {[%clk 0:02:05.2]} 24... Rad8
{[%clk 0:01:29.9]} 25. Be3 {[%clk 0:02:03.6]} 25... Bb4 {[%clk 0:01:26.5]} 26.
c3 {[%clk 0:02:01.3]} 26... Be7 {[%clk 0:01:25.3]} 27. Rad1 {[%clk 0:01:56.8]}
27... Bf6 {[%clk 0:01:23.8]} 28. Bd4 {[%clk 0:01:56.4]} 28... Bxd4 {[%clk
0:01:17.1]} 29. Nxd4 {[%clk 0:01:57.3]} 29... Kf7 {[%clk 0:01:15.8]} 30. f3
{[%clk 0:01:49.4]} 30... Nc5 {[%clk 0:01:10]} 31. b4 {[%clk 0:01:49.6]} 31...
Na4 {[%clk 0:01:10.2]} 32. Rd2 {[%clk 0:01:46.8]} 32... Rfe8 {[%clk 0:01:09.8]}
33. Rxe8 {[%clk 0:01:21.2]} 33... Rxe8 {[%clk 0:01:08.8]} 34. Ne2 {[%clk
0:01:10.9]} 34... Nb6 {[%clk 0:01:03.7]} 35. b3 {[%clk 0:01:08.4]} 35... c6
{[%clk 0:01:03.8]} 36. Nf4 {[%clk 0:01:07.3]} 36... g5 {[%clk 0:00:59.9]} 37.
Nd3 {[%clk 0:01:07.1]} 37... Nd5 {[%clk 0:00:57.5]} 38. c4 {[%clk 0:01:06.7]}
38... Ne3+ {[%clk 0:00:56.8]} 39. Kf2 {[%clk 0:01:06.6]} 39... f4 {[%clk
0:00:56]} 40. Nc5 {[%clk 0:01:05.5]} 40... Re7 {[%clk 0:00:56]} 41. Ne4 {[%clk
0:00:58.4]} 41... Kg6 {[%clk 0:00:56.1]} 42. Rd6+ {[%clk 0:00:57.7]} 42... Kf5
{[%clk 0:00:55.8]} 43. Rd8 {[%clk 0:00:50.3]} 43... Nc2 {[%clk 0:00:51.2]} 44.
Rh8 {[%clk 0:00:29]} 44... Kg6 {[%clk 0:00:32.4]} 45. b5 {[%clk 0:00:24]} 45...
axb5 {[%clk 0:00:31.2]} 46. cxb5 {[%clk 0:00:24.9]} 46... cxb5 {[%clk
0:00:30.3]} 47. Rd8 {[%clk 0:00:25.1]} 47... Nb4 {[%clk 0:00:26.5]} 48. Rd6+
{[%clk 0:00:23.3]} 48... Kf5 {[%clk 0:00:25.7]} 49. Rb6 {[%clk 0:00:22.8]} 49...
Nd3+ {[%clk 0:00:23.9]} 50. Kg1 {[%clk 0:00:20.5]} 50... b4 {[%clk 0:00:17.8]}
51. Rxb7 {[%clk 0:00:17.5]} 51... Rxb7 {[%clk 0:00:17.2]} 52. Nd6+ {[%clk
0:00:17.8]} 52... Ke6 {[%clk 0:00:17.6]} 53. Nxb7 {[%clk 0:00:18.7]} 53... Kd5
{[%clk 0:00:16.9]} 54. Kf1 {[%clk 0:00:14.8]} 54... Kd4 {[%clk 0:00:16.9]} 55.
Na5 {[%clk 0:00:01.9]} 55... Kc3 {[%clk 0:00:16.8]} 56. Ke2 {[%clk 0:00:02.8]}
56... Nc1+ {[%clk 0:00:17]} 57. Kd1 {[%clk 0:00:03.7]} 57... Nxb3 {[%clk
0:00:17.4]} 58. Nc6 {[%clk 0:00:04.6]} 58... Nd4 {[%clk 0:00:17.7]} 59. Ne7
{[%clk 0:00:03.4]} 59... b3 {[%clk 0:00:16.3]} 60. Kc1 {[%clk 0:00:02.8]} 60...
b2+ {[%clk 0:00:14.8]} 61. Kb1 {[%clk 0:00:03.1]} 61... Nb5 {[%clk 0:00:15.2]}
0-1

[Event "Early-Titled-Tuesday-Blitz-February-06-2024"]
[Site "Chess.com"]
[Date "2024.02.06"]
[Round "9"]
[White "FormerProdigy"]
[Black "Yurovskykh_Oleksandr"]
[Result "0-1"]
[WhiteElo "2985"]
[BlackElo "2661"]
[TimeControl "180+1"]
[EndTime "9:45:47 PST"]
[Termination "Yurovskykh_Oleksandr won on time"]

1. e4 {[%clk 0:03:00.9]} 1... e6 {[%clk 0:02:52.7]} 2. d4 {[%clk 0:02:59.6]}
2... d5 {[%clk 0:02:51.7]} 3. Nd2 {[%clk 0:03:00.2]} 3... dxe4 {[%clk
0:02:50.8]} 4. Nxe4 {[%clk 0:03:01.1]} 4... Bd7 {[%clk 0:02:51]} 5. Nf3 {[%clk
0:03:00.3]} 5... Bc6 {[%clk 0:02:51.3]} 6. Bd3 {[%clk 0:02:59.9]} 6... Nd7
{[%clk 0:02:51.8]} 7. O-O {[%clk 0:02:59.3]} 7... Ngf6 {[%clk 0:02:52]} 8. Ng3
{[%clk 0:02:59.9]} 8... g6 {[%clk 0:02:51.6]} 9. b3 {[%clk 0:02:59.8]} 9... Bg7
{[%clk 0:02:51.5]} 10. Ba3 {[%clk 0:03:00.1]} 10... Bf8 {[%clk 0:02:52.1]} 11.
Bb2 {[%clk 0:03:00.3]} 11... Bg7 {[%clk 0:02:52.7]} 12. c4 {[%clk 0:02:53.7]}
12... O-O {[%clk 0:02:52.5]} 13. Qe2 {[%clk 0:02:54.3]} 13... Bxf3 {[%clk
0:02:49.7]} 14. Qxf3 {[%clk 0:02:55.2]} 14... c6 {[%clk 0:02:50.3]} 15. Rad1
{[%clk 0:02:46.7]} 15... Qc7 {[%clk 0:02:49.7]} 16. Rfe1 {[%clk 0:02:42.5]}
16... Rfe8 {[%clk 0:02:49.6]} 17. Bb1 {[%clk 0:02:40.3]} 17... b5 {[%clk
0:02:37.2]} 18. Nf1 {[%clk 0:02:22.2]} 18... bxc4 {[%clk 0:02:35.5]} 19. bxc4
{[%clk 0:02:23.1]} 19... c5 {[%clk 0:02:19.2]} 20. d5 {[%clk 0:02:13.5]} 20...
exd5 {[%clk 0:02:18.7]} 21. Rxe8+ {[%clk 0:02:09.3]} 21... Rxe8 {[%clk
0:02:10.9]} 22. cxd5 {[%clk 0:02:09.3]} 22... Qd6 {[%clk 0:02:07.3]} 23. Ne3
{[%clk 0:02:01.9]} 23... Nb6 {[%clk 0:02:07.5]} 24. g3 {[%clk 0:01:30.4]} 24...
Nfd7 {[%clk 0:02:03.7]} 25. Bxg7 {[%clk 0:01:28.7]} 25... Kxg7 {[%clk
0:02:04.6]} 26. Qg4 {[%clk 0:01:25.8]} 26... Kf8 {[%clk 0:01:46.3]} 27. Qh4
{[%clk 0:01:14.6]} 27... h5 {[%clk 0:01:44.9]} 28. Qg5 {[%clk 0:01:11.9]} 28...
Qf6 {[%clk 0:01:36.8]} 29. Qh6+ {[%clk 0:01:06.5]} 29... Qg7 {[%clk 0:01:33.7]}
30. Qf4 {[%clk 0:00:58.9]} 30... Qe5 {[%clk 0:01:29.7]} 31. Qh6+ {[%clk
0:00:57.6]} 31... Qg7 {[%clk 0:01:29.6]} 32. Qxg7+ {[%clk 0:00:58.2]} 32... Kxg7
{[%clk 0:01:29.8]} 33. Bd3 {[%clk 0:00:59.1]} 33... Kf6 {[%clk 0:01:18.9]} 34.
Bb5 {[%clk 0:00:57.2]} 34... Ke7 {[%clk 0:01:15.7]} 35. d6+ {[%clk 0:00:54.5]}
35... Kd8 {[%clk 0:01:16]} 36. a4 {[%clk 0:00:55.1]} 36... a5 {[%clk 0:01:11.6]}
37. Bc6 {[%clk 0:00:39.4]} 37... Re6 {[%clk 0:01:04.7]} 38. Kf1 {[%clk
0:00:34.2]} 38... Ne5 {[%clk 0:00:58.1]} 39. Bb5 {[%clk 0:00:33]} 39... Ng4
{[%clk 0:00:54]} 40. Nxg4 {[%clk 0:00:29.2]} 40... hxg4 {[%clk 0:00:54.9]} 41.
Rc1 {[%clk 0:00:22.2]} 41... Re5 {[%clk 0:00:46.8]} 42. Bc6 {[%clk 0:00:20.3]}
42... Nc8 {[%clk 0:00:40.1]} 43. Rd1 {[%clk 0:00:18.1]} 43... Re6 {[%clk
0:00:37.5]} 44. Rd5 {[%clk 0:00:18.4]} 44... c4 {[%clk 0:00:23.2]} 45. Rxa5
{[%clk 0:00:19.3]} 45... Rxd6 {[%clk 0:00:21.6]} 46. Rc5 {[%clk 0:00:19.6]}
46... Na7 {[%clk 0:00:15.8]} 47. Bd5 {[%clk 0:00:18.1]} 47... c3 {[%clk
0:00:14.8]} 48. Ke2 {[%clk 0:00:12.7]} 48... f5 {[%clk 0:00:13.1]} 49. Kd3
{[%clk 0:00:12.8]} 49... Nc8 {[%clk 0:00:12.6]} 50. Kxc3 {[%clk 0:00:11.9]}
50... Nb6 {[%clk 0:00:12.5]} 51. Bb3 {[%clk 0:00:12.5]} 51... Ke7 {[%clk
0:00:09.4]} 52. a5 {[%clk 0:00:11]} 52... Nd7 {[%clk 0:00:09.9]} 53. Rb5 {[%clk
0:00:10.9]} 53... Ra6 {[%clk 0:00:08.5]} 54. Bc4 {[%clk 0:00:10.5]} 54... Ra7
{[%clk 0:00:08.3]} 55. Kb4 {[%clk 0:00:10.1]} 55... Kd6 {[%clk 0:00:08.6]} 56.
a6 {[%clk 0:00:06.4]} 56... Kc6 {[%clk 0:00:08.1]} 57. Ra5 {[%clk 0:00:04.8]}
57... Nb8 {[%clk 0:00:06.2]} 58. Bb5+ {[%clk 0:00:04.6]} 58... Kb6 {[%clk
0:00:06.2]} 59. Ra3 {[%clk 0:00:03.8]} 59... Re7 {[%clk 0:00:03.9]} 60. Bc4
{[%clk 0:00:01.1]} 60... Ka7 {[%clk 0:00:04]} 61. Kc5 {[%clk 0:00:01.3]} 61...
Re1 {[%clk 0:00:03.2]} 62. Rd3 {[%clk 0:00:01.1]} 62... Ka8 {[%clk 0:00:01.6]}
0-1

[Event "Early-Titled-Tuesday-Blitz-February-06-2024"]
[Site "Chess.com"]
[Date "2024.02.06"]
[Round "9"]
[White "GMBenjaminBok"]
[Black "Alex_Sahakyan2006"]
[Result "1-0"]
[WhiteElo "2986"]
[BlackElo "2900"]
[TimeControl "180+1"]
[EndTime "9:45:50 PST"]
[Termination "GMBenjaminBok won on time"]

1. d4 {[%clk 0:03:00.9]} 1... Nf6 {[%clk 0:02:56.6]} 2. c4 {[%clk 0:02:59.5]}
2... c5 {[%clk 0:02:55.9]} 3. Nf3 {[%clk 0:02:59.2]} 3... cxd4 {[%clk
0:02:55.4]} 4. Nxd4 {[%clk 0:03:00.1]} 4... Nc6 {[%clk 0:02:55.5]} 5. Nc3 {[%clk
0:02:59]} 5... e6 {[%clk 0:02:54.2]} 6. g3 {[%clk 0:02:57.5]} 6... Qb6 {[%clk
0:02:44.5]} 7. Nf3 {[%clk 0:02:44.9]} 7... Bb4 {[%clk 0:02:37.2]} 8. Bg2 {[%clk
0:02:31.2]} 8... Ne4 {[%clk 0:02:30.8]} 9. O-O {[%clk 0:02:25.4]} 9... Nxc3
{[%clk 0:02:31]} 10. bxc3 {[%clk 0:02:26.3]} 10... Bxc3 {[%clk 0:02:31.6]} 11.
Be3 {[%clk 0:02:24.4]} 11... Qa5 {[%clk 0:02:21.9]} 12. Rc1 {[%clk 0:02:02.1]}
12... O-O {[%clk 0:02:18]} 13. Ng5 {[%clk 0:01:37.8]} 13... f5 {[%clk
0:01:47.6]} 14. c5 {[%clk 0:01:23.8]} 14... Bf6 {[%clk 0:01:14.3]} 15. Qb3
{[%clk 0:01:17.3]} 15... Qb4 {[%clk 0:01:02]} 16. Qd3 {[%clk 0:01:01]} 16... Ne5
{[%clk 0:00:49.2]} 17. Qc2 {[%clk 0:00:55.9]} 17... Ng4 {[%clk 0:00:43.1]} 18.
Bd2 {[%clk 0:00:54.9]} 18... Qa3 {[%clk 0:00:36.1]} 19. Rb1 {[%clk 0:00:35.4]}
19... Qa6 {[%clk 0:00:36.4]} 20. e4 {[%clk 0:00:30]} 20... h6 {[%clk 0:00:16.7]}
21. Nf3 {[%clk 0:00:29.1]} 21... d5 {[%clk 0:00:16.8]} 22. exf5 {[%clk
0:00:22.3]} 22... exf5 {[%clk 0:00:16.7]} 23. h3 {[%clk 0:00:22.7]} 23... Ne5
{[%clk 0:00:16.1]} 24. Nxe5 {[%clk 0:00:23.2]} 24... Bxe5 {[%clk 0:00:17]} 25.
Bxd5+ {[%clk 0:00:23.7]} 25... Kh8 {[%clk 0:00:17.8]} 26. Rfe1 {[%clk
0:00:22.4]} 26... Qf6 {[%clk 0:00:12.5]} 27. f4 {[%clk 0:00:10.3]} 27... Bd4+
{[%clk 0:00:12.5]} 28. Kg2 {[%clk 0:00:10.8]} 28... Bd7 {[%clk 0:00:09.9]} 29.
Bxb7 {[%clk 0:00:04.9]} 29... Bc6+ {[%clk 0:00:09.6]} 30. Bxc6 {[%clk
0:00:05.5]} 30... Qxc6+ {[%clk 0:00:10.5]} 31. Kh2 {[%clk 0:00:06.1]} 31... Qxc5
{[%clk 0:00:09.9]} 32. Qxc5 {[%clk 0:00:06.4]} 32... Bxc5 {[%clk 0:00:10.7]} 33.
Bc3 {[%clk 0:00:07.2]} 33... Rf7 {[%clk 0:00:05.6]} 34. Rb5 {[%clk 0:00:06.2]}
34... Rc8 {[%clk 0:00:04.4]} 35. Kg2 {[%clk 0:00:05.7]} 35... Bb6 {[%clk
0:00:03.7]} 36. Bb2 {[%clk 0:00:04.1]} 36... Rc2+ {[%clk 0:00:03.6]} 37. Kh1
{[%clk 0:00:04.2]} 37... Rc5 {[%clk 0:00:03.9]} 38. Rxc5 {[%clk 0:00:04]} 38...
Bxc5 {[%clk 0:00:04.5]} 39. Re5 {[%clk 0:00:04.6]} 39... Bb6 {[%clk 0:00:04.1]}
40. Kg2 {[%clk 0:00:04.7]} 40... Kh7 {[%clk 0:00:04.6]} 41. Kf3 {[%clk
0:00:04.6]} 41... Bc7 {[%clk 0:00:04.1]} 42. Rd5 {[%clk 0:00:04.2]} 42... Bb6
{[%clk 0:00:04.2]} 43. a4 {[%clk 0:00:04.4]} 43... Kg6 {[%clk 0:00:03]} 44. a5
{[%clk 0:00:04.9]} 44... Bc7 {[%clk 0:00:02.8]} 45. Bd4 {[%clk 0:00:05.5]} 45...
Bb8 {[%clk 0:00:01.9]} 46. a6 {[%clk 0:00:05.1]} 46... Kh7 {[%clk 0:00:02.3]}
47. h4 {[%clk 0:00:05.1]} 47... h5 {[%clk 0:00:02.5]} 48. Rb5 {[%clk 0:00:04]}
48... Rf8 {[%clk 0:00:02]} 49. Rb7 {[%clk 0:00:04.3]} 49... Kg6 {[%clk
0:00:02.2]} 50. Rxg7+ {[%clk 0:00:04]} 50... Kh6 {[%clk 0:00:02.7]} 51. Rb7
{[%clk 0:00:04.9]} 51... Kg6 {[%clk 0:00:02]} 52. Bxa7 {[%clk 0:00:05.2]} 52...
Bxa7 {[%clk 0:00:02.6]} 53. Rxa7 {[%clk 0:00:06.1]} 53... Rc8 {[%clk 0:00:02.8]}
54. Rb7 {[%clk 0:00:06.5]} 54... Rc3+ {[%clk 0:00:03.2]} 55. Kf2 {[%clk
0:00:07.1]} 55... Ra3 {[%clk 0:00:04.1]} 56. a7 {[%clk 0:00:06.8]} 56... Kf6
{[%clk 0:00:04.7]} 57. Ke2 {[%clk 0:00:07.2]} 57... Ke6 {[%clk 0:00:05.4]} 58.
Kd2 {[%clk 0:00:07.8]} 58... Kd5 {[%clk 0:00:05.6]} 59. Kc2 {[%clk 0:00:08.2]}
59... Ke4 {[%clk 0:00:04.2]} 60. Kb2 {[%clk 0:00:08.1]} 60... Ra6 {[%clk
0:00:03.9]} 61. Kc3 {[%clk 0:00:07.9]} 61... Kf3 {[%clk 0:00:04.1]} 62. Rg7
{[%clk 0:00:08]} 62... Ra4 {[%clk 0:00:02.1]} 63. Kb3 {[%clk 0:00:08]} 63... Ra1
{[%clk 0:00:02.5]} 64. Kb4 {[%clk 0:00:07.8]} 64... Kg2 {[%clk 0:00:01.7]} 65.
Kc5 {[%clk 0:00:07.8]} 65... Kf3 {[%clk 0:00:01.8]} 66. Kb6 {[%clk 0:00:07.9]}
66... Rb1+ {[%clk 0:00:01.5]} 67. Kc7 {[%clk 0:00:08.3]} 67... Ra1 {[%clk
0:00:01.1]} 68. Kb8 {[%clk 0:00:08.8]} 1-0

[Event "Early-Titled-Tuesday-Blitz-February-06-2024"]
[Site "Chess.com"]
[Date "2024.02.06"]
[Round "9"]
[White "tarno17"]
[Black "BallottiLuca"]
[Result "0-1"]
[WhiteElo "2124"]
[BlackElo "2360"]
[TimeControl "180+1"]
[EndTime "9:45:51 PST"]
[Termination "BallottiLuca won by resignation"]

1. e4 {[%clk 0:03:00.9]} 1... c5 {[%clk 0:02:55.1]} 2. Nf3 {[%clk 0:03:00.3]}
2... d6 {[%clk 0:02:53.9]} 3. Bb5+ {[%clk 0:02:59.6]} 3... Bd7 {[%clk
0:02:51.5]} 4. Bxd7+ {[%clk 0:02:57.1]} 4... Qxd7 {[%clk 0:02:51.2]} 5. O-O
{[%clk 0:02:57.6]} 5... Nc6 {[%clk 0:02:49.3]} 6. d4 {[%clk 0:02:45.2]} 6...
cxd4 {[%clk 0:02:50.2]} 7. Nxd4 {[%clk 0:02:45.2]} 7... Nf6 {[%clk 0:02:46.7]}
8. Re1 {[%clk 0:02:37.2]} 8... g6 {[%clk 0:02:45.2]} 9. c3 {[%clk 0:02:13.4]}
9... Bg7 {[%clk 0:02:43]} 10. Nd2 {[%clk 0:02:12.9]} 10... O-O {[%clk
0:02:42.8]} 11. Nf1 {[%clk 0:02:00.6]} 11... Rac8 {[%clk 0:02:36.7]} 12. Ng3
{[%clk 0:01:50.5]} 12... Rfd8 {[%clk 0:02:30]} 13. Be3 {[%clk 0:01:43.4]} 13...
Ne5 {[%clk 0:02:29.2]} 14. h3 {[%clk 0:01:16.5]} 14... Nc4 {[%clk 0:02:28.7]}
15. Qe2 {[%clk 0:01:09.2]} 15... Nxe3 {[%clk 0:02:26.9]} 16. Qxe3 {[%clk
0:01:09.3]} 16... a6 {[%clk 0:02:25]} 17. Rad1 {[%clk 0:00:52.5]} 17... Qa4
{[%clk 0:02:23.6]} 18. a3 {[%clk 0:00:47.6]} 18... Nd7 {[%clk 0:02:23.2]} 19.
Qg5 {[%clk 0:00:41.6]} 19... Bf6 {[%clk 0:02:20.5]} 20. Qh6 {[%clk 0:00:31.1]}
20... Nc5 {[%clk 0:02:04]} 21. Re3 {[%clk 0:00:22.6]} 21... Qe8 {[%clk 0:02:02]}
22. Qf4 {[%clk 0:00:10.6]} 22... Ne6 {[%clk 0:01:54.3]} 23. Qg4 {[%clk
0:00:10.9]} 23... Ng7 {[%clk 0:01:46.4]} 24. f4 {[%clk 0:00:10.7]} 24... Qd7
{[%clk 0:01:38.6]} 25. Qf3 {[%clk 0:00:10.2]} 25... Ne6 {[%clk 0:01:29]} 26. f5
{[%clk 0:00:09.4]} 26... Nxd4 {[%clk 0:01:28]} 27. cxd4 {[%clk 0:00:08.7]} 27...
Rc2 {[%clk 0:01:26.2]} 28. Qg4 {[%clk 0:00:07]} 28... Rdc8 {[%clk 0:01:15.6]}
29. Nh5 {[%clk 0:00:06.5]} 29... Rxb2 {[%clk 0:00:55.4]} 30. Nxf6+ {[%clk
0:00:05.6]} 30... exf6 {[%clk 0:00:56.3]} 31. Qg3 {[%clk 0:00:04]} 31... Rcc2
{[%clk 0:00:53.4]} 32. fxg6 {[%clk 0:00:02.8]} 32... hxg6 {[%clk 0:00:48.8]} 33.
Rf1 {[%clk 0:00:02.8]} 33... Rxg2+ {[%clk 0:00:38.4]} 34. Qxg2 {[%clk
0:00:03.7]} 34... Rxg2+ {[%clk 0:00:38.9]} 35. Kxg2 {[%clk 0:00:04]} 35... Kg7
{[%clk 0:00:39.2]} 36. Ref3 {[%clk 0:00:04.5]} 36... Qe6 {[%clk 0:00:29.2]} 37.
Rf4 {[%clk 0:00:05]} 37... b5 {[%clk 0:00:26.8]} 38. R1f2 {[%clk 0:00:05.3]}
38... a5 {[%clk 0:00:26.6]} 39. h4 {[%clk 0:00:04.3]} 39... b4 {[%clk 0:00:26]}
40. axb4 {[%clk 0:00:03.1]} 40... axb4 {[%clk 0:00:26.9]} 41. R2f3 {[%clk
0:00:02.5]} 41... b3 {[%clk 0:00:25.3]} 42. Rf2 {[%clk 0:00:02.9]} 42... d5
{[%clk 0:00:20.7]} 43. h5 {[%clk 0:00:03.1]} 43... dxe4 {[%clk 0:00:18.8]} 44.
h6+ {[%clk 0:00:02.5]} 44... Kxh6 {[%clk 0:00:17.2]} 45. Kg3 {[%clk 0:00:03]}
45... f5 {[%clk 0:00:16.5]} 46. Rh2+ {[%clk 0:00:03]} 46... Kg7 {[%clk
0:00:16.6]} 47. Rfh4 {[%clk 0:00:02.8]} 47... Qd6+ {[%clk 0:00:16.3]} 48. Kf2
{[%clk 0:00:03.4]} 48... Qxd4+ {[%clk 0:00:16.2]} 49. Ke1 {[%clk 0:00:03.8]}
49... b2 {[%clk 0:00:15.5]} 50. Rh7+ {[%clk 0:00:04.3]} 50... Kf6 {[%clk
0:00:15.9]} 51. Rxb2 {[%clk 0:00:02.2]} 51... Qxb2 {[%clk 0:00:15.7]} 52. Rh3
{[%clk 0:00:01.4]} 52... Qb4+ {[%clk 0:00:14.8]} 53. Kf1 {[%clk 0:00:01.8]}
53... Qc4+ {[%clk 0:00:14.7]} 54. Kg2 {[%clk 0:00:02.4]} 54... Qe2+ {[%clk
0:00:14.5]} 55. Kg1 {[%clk 0:00:02.7]} 55... Qe1+ {[%clk 0:00:13.7]} 56. Kg2
{[%clk 0:00:03.4]} 56... e3 {[%clk 0:00:12.9]} 57. Rf3 {[%clk 0:00:03.1]} 57...
Qf2+ {[%clk 0:00:12.2]} 58. Rxf2 {[%clk 0:00:01.8]} 58... exf2 {[%clk
0:00:13.1]} 59. Kxf2 {[%clk 0:00:02.7]} 59... g5 {[%clk 0:00:13.7]} 60. Kg3
{[%clk 0:00:03.1]} 60... Ke5 {[%clk 0:00:14.2]} 61. Kh2 {[%clk 0:00:03.4]} 61...
Kf4 {[%clk 0:00:14.5]} 62. Kg2 {[%clk 0:00:04.3]} 62... Ke3 {[%clk 0:00:14.7]}
63. Kf1 {[%clk 0:00:04.7]} 63... Kf3 {[%clk 0:00:14.4]} 64. Kg1 {[%clk
0:00:05.4]} 64... f4 {[%clk 0:00:14.5]} 65. Kh2 {[%clk 0:00:06]} 65... g4 {[%clk
0:00:14.6]} 66. Kh1 {[%clk 0:00:06.1]} 66... Ke2 {[%clk 0:00:14.8]} 67. Kg1
{[%clk 0:00:06.9]} 67... f3 {[%clk 0:00:14.8]} 68. Kh2 {[%clk 0:00:07.4]} 68...
f2 {[%clk 0:00:14.4]} 69. Kg3 {[%clk 0:00:08.1]} 69... f1=Q {[%clk 0:00:14.5]}
70. Kxg4 {[%clk 0:00:09]} 70... Qf3+ {[%clk 0:00:14.5]} 71. Kg5 {[%clk
0:00:09.2]} 71... f5 {[%clk 0:00:13.5]} 72. Kh6 {[%clk 0:00:09.9]} 72... f4
{[%clk 0:00:13.3]} 73. Kg7 {[%clk 0:00:10.8]} 73... Qg3+ {[%clk 0:00:12.8]} 0-1

[Event "Early-Titled-Tuesday-Blitz-February-06-2024"]
[Site "Chess.com"]
[Date "2024.02.06"]
[Round "9"]
[White "Blitzking642"]
[Black "margarita_2703"]
[Result "1-0"]
[WhiteElo "2539"]
[BlackElo "2360"]
[TimeControl "180+1"]
[EndTime "9:45:54 PST"]
[Termination "Blitzking642 won by resignation"]

1. e4 {[%clk 0:03:00.9]} 1... e5 {[%clk 0:02:12.3]} 2. Nf3 {[%clk 0:03:00.3]}
2... Nc6 {[%clk 0:02:07]} 3. Bc4 {[%clk 0:03:00.6]} 3... Nf6 {[%clk 0:02:06.7]}
4. d3 {[%clk 0:03:00.5]} 4... h6 {[%clk 0:01:53.5]} 5. O-O {[%clk 0:02:56.9]}
5... g5 {[%clk 0:01:51.3]} 6. a4 {[%clk 0:02:49.8]} 6... Bg7 {[%clk 0:01:49.8]}
7. Nc3 {[%clk 0:02:48.1]} 7... O-O {[%clk 0:01:49.2]} 8. a5 {[%clk 0:02:47.4]}
8... d6 {[%clk 0:01:46.7]} 9. Bd2 {[%clk 0:02:42.7]} 9... Be6 {[%clk 0:01:46.3]}
10. Nd5 {[%clk 0:02:37.7]} 10... Ne7 {[%clk 0:01:42.5]} 11. a6 {[%clk
0:02:31.8]} 11... b6 {[%clk 0:01:36.7]} 12. Ne3 {[%clk 0:02:25.5]} 12... c6
{[%clk 0:01:35.1]} 13. Ba2 {[%clk 0:02:17.7]} 13... Ng6 {[%clk 0:01:34]} 14. g3
{[%clk 0:02:03]} 14... Qd7 {[%clk 0:01:29.7]} 15. Bc3 {[%clk 0:01:54.6]} 15...
Rad8 {[%clk 0:01:18.7]} 16. Re1 {[%clk 0:01:51.8]} 16... Rfe8 {[%clk 0:01:14.2]}
17. Bxe6 {[%clk 0:01:46.5]} 17... fxe6 {[%clk 0:01:13.7]} 18. b4 {[%clk
0:01:40]} 18... c5 {[%clk 0:01:11.8]} 19. bxc5 {[%clk 0:01:38.3]} 19... bxc5
{[%clk 0:01:12.7]} 20. Qd2 {[%clk 0:01:31.8]} 20... Rf8 {[%clk 0:01:11.8]} 21.
Kg2 {[%clk 0:01:27.2]} 21... Qf7 {[%clk 0:01:11.2]} 22. Qe2 {[%clk 0:01:22.7]}
22... g4 {[%clk 0:01:11.1]} 23. Nd2 {[%clk 0:01:22.4]} 23... h5 {[%clk
0:01:11.1]} 24. Ndc4 {[%clk 0:01:15.3]} 24... Nh7 {[%clk 0:01:10.4]} 25. Nd1
{[%clk 0:01:03.9]} 25... Ng5 {[%clk 0:01:09.9]} 26. Rb1 {[%clk 0:00:53.3]} 26...
Rd7 {[%clk 0:01:09.4]} 27. Bd2 {[%clk 0:00:48.8]} 27... Nf3 {[%clk 0:01:09.2]}
28. Rf1 {[%clk 0:00:47.8]} 28... h4 {[%clk 0:01:09.1]} 29. Nce3 {[%clk
0:00:44.9]} 29... Nxd2 {[%clk 0:00:58.6]} 30. Qxd2 {[%clk 0:00:44.7]} 30... Qf3+
{[%clk 0:00:59.3]} 31. Kg1 {[%clk 0:00:41.9]} 31... h3 {[%clk 0:00:59.5]} 32.
Nc3 {[%clk 0:00:34.4]} 32... d5 {[%clk 0:00:58.1]} 33. Qe2 {[%clk 0:00:26.4]}
33... d4 {[%clk 0:00:56.7]} 34. Nxg4 {[%clk 0:00:25.2]} 34... dxc3 {[%clk
0:00:54.7]} 35. Qxf3 {[%clk 0:00:23.6]} 35... Rxf3 {[%clk 0:00:55.6]} 36. Rb7
{[%clk 0:00:22]} 36... Rff7 {[%clk 0:00:55.4]} 37. Rfb1 {[%clk 0:00:21.1]} 37...
Nf8 {[%clk 0:00:53.2]} 38. Ne3 {[%clk 0:00:18.2]} 38... Rd8 {[%clk 0:00:49.1]}
39. Nc4 {[%clk 0:00:16]} 39... Bf6 {[%clk 0:00:44.3]} 40. Na5 {[%clk 0:00:16]}
40... Nd7 {[%clk 0:00:37.7]} 41. Nc6 {[%clk 0:00:15.2]} 41... Ra8 {[%clk
0:00:37.6]} 42. Rxa7 {[%clk 0:00:13.6]} 42... Rxa7 {[%clk 0:00:35.5]} 43. Nxa7
{[%clk 0:00:14.5]} 43... Rf8 {[%clk 0:00:34.6]} 44. Nc6 {[%clk 0:00:12.9]} 44...
Ra8 {[%clk 0:00:33.5]} 45. a7 {[%clk 0:00:12.9]} 45... Kf7 {[%clk 0:00:31.6]}
46. Rb7 {[%clk 0:00:13.3]} 46... Ke8 {[%clk 0:00:30.6]} 47. f4 {[%clk
0:00:13.7]} 47... exf4 {[%clk 0:00:30.1]} 48. gxf4 {[%clk 0:00:13.7]} 48... Bd4+
{[%clk 0:00:30.3]} 49. Kf1 {[%clk 0:00:11.8]} 49... e5 {[%clk 0:00:27.3]} 50. f5
{[%clk 0:00:10.7]} 50... Be3 {[%clk 0:00:22.3]} 51. f6 {[%clk 0:00:10.5]} 51...
c4 {[%clk 0:00:13.1]} 52. f7+ {[%clk 0:00:10]} 52... Kxf7 {[%clk 0:00:12.9]} 53.
Rxd7+ {[%clk 0:00:10.4]} 53... Ke6 {[%clk 0:00:13.1]} 54. Rd8 {[%clk 0:00:09.8]}
54... Rxa7 {[%clk 0:00:11.6]} 55. Nxa7 {[%clk 0:00:09.3]} 55... Bxa7 {[%clk
0:00:11.6]} 56. dxc4 {[%clk 0:00:08.8]} 56... Bd4 {[%clk 0:00:11.2]} 57. Rh8
{[%clk 0:00:08.5]} 57... Kd6 {[%clk 0:00:11.5]} 58. Rxh3 {[%clk 0:00:08.5]}
58... Kc5 {[%clk 0:00:12.4]} 59. Rh7 {[%clk 0:00:08.4]} 59... Kxc4 {[%clk
0:00:13.3]} 60. h4 {[%clk 0:00:06.9]} 60... Be3 {[%clk 0:00:13.5]} 61. Rd7
{[%clk 0:00:07]} 61... Bf4 {[%clk 0:00:10.6]} 62. h5 {[%clk 0:00:07.1]} 62...
Kc5 {[%clk 0:00:10.5]} 63. Ke2 {[%clk 0:00:07.4]} 63... Kc6 {[%clk 0:00:10.6]}
64. Rg7 {[%clk 0:00:06.5]} 64... Kd6 {[%clk 0:00:10.9]} 65. h6 {[%clk
0:00:06.5]} 65... Ke6 {[%clk 0:00:11]} 66. h7 {[%clk 0:00:06.5]} 66... Kf6
{[%clk 0:00:11.4]} 67. h8=Q {[%clk 0:00:06.6]} 67... Ke6 {[%clk 0:00:12.3]} 68.
Qe8+ {[%clk 0:00:06.4]} 1-0